bitfinex/quotes_SOLUSD_20220306
["timestamp","ask_amount","ask_price","bid_price","bid_amount"]
[1646565928600,116.8617002,86.2,86.054,84.66495196]
[1646565928899,116.8617002,86.185,86.054,79.5497]
[1646565929099,1.5617002,86.186,86.102,2.83613526]
[1646565929298,52.6608,86.194,86.091,24.36929315]
[1646565929299,1.5617002,86.178,86.092,2.83613526]
[1646565929499,46.8578,86.194,86.11,17.4232]
[1646565929500,1.5617002,86.18,86.11,17.4232]
[1646565929703,1.5617002,86.183,86.11,17.4232]
[1646565930099,1.5617002,86.185,86.11,17.4232]
[1646565930299,1.5617002,86.187,86.11,17.4232]
[1646565930501,1.5617002,86.192,86.11,17.4232]
[1646565930701,1.5617002,86.192,86.13,17.4158]
[1646565930905,46.8578,86.194,86.13,17.4158]
[1646565931101,46.8578,86.194,86.131,22.4357396]
[1646565931303,1.5617002,86.197,86.131,22.4357396]
[1646565931504,1.5617002,86.201,86.131,25.27187486]
[1646565931702,79.60054169,86.209,86.131,25.27187486]
[1646565931903,81.16224189,86.209,86.132,2.83613526]
[1646565932207,1.5617002,86.209,86.14,17.4117]
[1646565932404,1.5617002,86.209,86.14,24.7817]
[1646565932602,1.5617002,86.22,86.141,2.83613526]
[1646565932802,1.5617002,86.222,86.141,2.83613526]
[1646565933202,66.37480797,86.221,86.15,17.4155]
[1646565933404,1.5617002,86.214,86.15,17.4155]
[1646565933603,1.5617002,86.215,86.15,17.4155]
[1646565934204,1.5617002,86.217,86.15,17.4155]
[1646565934404,5.801,86.216,86.15,17.4155]
[1646565935006,1.5617002,86.215,86.15,17.4155]
[1646565935207,1.5617002,86.217,86.15,17.4155]
[1646565935409,1.5617002,86.216,86.15,17.4155]
[1646565935607,1.5617002,86.218,86.15,17.4155]
[1646565936507,1.5617002,86.217,86.15,17.4155]
[1646565936706,1.5617002,86.218,86.15,17.4155]
[1646565937108,1.5617002,86.217,86.15,17.4155]
[1646565937719,1.5617002,86.218,86.15,17.4155]
[1646565937912,1.5617002,86.219,86.15,17.4155]
[1646565938108,1.5617002,86.22,86.151,2.83613526]
[1646565938309,1.5617002,86.227,86.17,17.408]
[1646565938808,1.5617002,86.227,86.171,51.86071597]
[1646565939409,1.5617002,86.228,86.171,51.86071597]
[1646565940212,1.5617002,86.229,86.18,17.4087]
[1646565940412,1.5617002,86.228,86.18,17.4087]
[1646565940813,1.5617002,86.229,86.18,17.4087]
[1646565941213,1.5617002,86.23,86.18,17.4087]
[1646565941614,1.5617002,86.231,86.18,17.4087]
[1646565942716,1.5617002,86.228,86.18,17.4087]
[1646565943917,1.5617002,86.229,86.18,17.4087]
[1646565944617,49.46734695,86.237,86.18,17.4087]
[1646565944618,1.5617002,86.228,86.18,17.4087]
[1646565944821,1.5617002,86.224,86.18,17.4087]
[1646565945124,5.8,86.236,86.151,2.83613526]
[1646565945125,1.5617002,86.22,86.151,2.83613526]
[1646565945318,1.5617002,86.201,86.127,23.2174]
[1646565945517,5.801,86.228,86.127,23.2174]
[1646565945518,1.5617002,86.203,86.127,23.2174]
[1646565945918,51.16434343,86.204,86.134,45.93125676]
[1646565946118,52.72604363,86.204,86.134,45.93125676]
[1646565946520,1.5617002,86.197,86.134,45.93125676]
[1646565946920,1.5617002,86.196,86.134,45.93125676]
[1646565947120,1.5617002,86.196,86.14,17.4177]
[1646565947721,1.5617002,86.195,86.14,17.4177]
[1646565949025,1.5617002,86.196,86.14,17.4177]
[1646565949223,1.5617002,86.197,86.14,17.4177]
[1646565949828,1.5617002,86.196,86.14,17.4177]
[1646565951421,1.5617002,86.195,86.14,17.4177]
[1646565953527,1.5617002,86.191,86.13,34.847]
[1646565953726,1.5617002,86.179,86.109,2.83613526]
[1646565953926,1.5617002,86.173,86.098,2.83613526]
[1646565954127,1.5617002,86.172,86.098,2.83613526]
[1646565954526,115.3,86.186,86.098,2.83613526]
[1646565954527,51.73787763,86.173,86.099,52.39373847]
[1646565954929,1.5617002,86.172,86.099,55.22987373]
[1646565955126,1.5617002,86.188,86.12,17.4217]
[1646565955326,1.5617002,86.189,86.12,17.4217]
[1646565955626,1.5617002,86.19,86.121,2.83613526]
[1646565955926,1.5617002,86.191,86.121,2.83613526]
[1646565956126,47.1494,86.216,86.121,2.83613526]
[1646565956127,57.34252693,86.19,86.14,17.4162]
[1646565956332,1.5617002,86.188,86.141,27.7037171]
[1646565956726,1.5617002,86.189,86.141,5.801]
[1646565956928,1.5617002,86.189,86.121,2.83613526]
[1646565957128,1.5617002,86.184,86.12,75.7181]
[1646565957329,1.5617002,86.183,86.12,75.7181]
[1646565957532,1.5617002,86.186,86.13,17.4197]
[1646565957733,1.5617002,86.186,86.131,54.49761638]
[1646565958128,1.5617002,86.187,86.131,54.49761638]
[1646565958329,1.5617002,86.186,86.131,54.49761638]
[1646565958530,1.5617002,86.189,86.14,17.4172]
[1646565958731,1.5617002,86.193,86.14,17.4172]
[1646565959131,1.5617002,86.194,86.141,2.83613526]
[1646565959330,1.5617002,86.202,86.142,5.801]
[1646565959530,1.5617002,86.206,86.142,5.801]
[1646565959730,1.5617002,86.203,86.15,17.41]
[1646565959931,1.5617002,86.203,86.151,5.801]
[1646565960135,1.5617002,86.203,86.151,2.83613526]
[1646565960333,1.5617002,86.203,86.152,5.801]
[1646565960533,1.5617002,86.204,86.152,5.801]
[1646565960747,1.5617002,86.204,86.141,2.83613526]
[1646565961049,1.5617002,86.2,86.141,2.83613526]
[1646565961448,1.5617002,86.203,86.141,2.83613526]
[1646565961647,1.5617002,86.204,86.141,2.83613526]
[1646565961848,1.5617002,86.205,86.141,2.83613526]
[1646565962048,1.5617002,86.206,86.141,2.83613526]
[1646565962950,1.5617002,86.206,86.151,116.1]
[1646565963150,1.5617002,86.218,86.16,57.9985]
[1646565963348,1.5617002,86.222,86.161,121.901]
[1646565963848,47.8057,86.253,86.161,121.901]
[1646565963849,1.5617002,86.226,86.163,116.1]
[1646565964050,1.5617002,86.227,86.164,5.8]
[1646565964349,1.5617002,86.227,86.164,16.65613526]
[1646565964550,1.5617002,86.228,86.165,2.83613526]
[1646565964748,1.5617002,86.228,86.17,17.3996]
[1646565964948,1.5617002,86.228,86.171,5.8]
[1646565965148,1.5617002,86.231,86.171,5.8]
[1646565966151,1.5617002,86.231,86.18,17.4056]
[1646565966352,1.5617002,86.232,86.181,5.8]
[1646565966552,1.5617002,86.232,86.171,5.8]
[1646565966751,1.5617002,86.231,86.171,5.8]
[1646565967252,1.5617002,86.231,86.19,17.4061]
[1646565967451,1.5617002,86.231,86.191,5.799]
[1646565967654,1.5617002,86.232,86.191,5.799]
[1646565967854,1.5617002,86.232,86.189,5.799]
[1646565968252,53.13851081,86.233,86.189,5.799]
[1646565968653,53.13851081,86.233,86.171,5.799]
[1646565968853,1.5617002,86.232,86.19,17.407]
[1646565969054,1.5617002,86.231,86.191,5.799]
[1646565969856,1.5617002,86.232,86.191,5.799]
[1646565971058,52.63851081,86.233,86.191,5.799]
[1646565971259,51.07681061,86.233,86.19,17.407]
[1646565971460,51.07681061,86.233,86.184,5.799]
[1646565971759,51.07681061,86.233,86.181,5.799]
[1646565971959,51.07681061,86.233,86.171,5.799]
[1646565972461,51.07681061,86.233,86.172,51.38840767]
[1646565972657,51.07681061,86.233,86.173,5.8]
[1646565973261,51.07681061,86.233,86.19,17.4067]
[1646565974661,51.07681061,86.233,86.166,5.799]
[1646565974861,1.5617002,86.224,86.161,5.8]
[1646565975162,1.5617002,86.218,86.161,56.10264592]
[1646565975361,51.47772291,86.217,86.161,56.10264592]
[1646565975962,51.47772291,86.217,86.17,17.4108]
[1646565977365,51.47772291,86.217,86.161,5.8]
[1646565977564,53.03942311,86.217,86.161,5.8]
[1646565978165,53.03942311,86.217,86.162,61.45869171]
[1646565978369,51.47772291,86.217,86.163,5.801]
[1646565978567,51.47772291,86.217,86.17,17.4107]
[1646565978766,51.47772291,86.217,86.171,5.8]
[1646565980468,53.03942311,86.217,86.171,5.8]
[1646565980667,53.03942311,86.217,86.163,5.8]
[1646565980870,1.5617002,86.216,86.163,5.8]
[1646565981269,1.5617002,86.214,86.16,17.2048]
[1646565981469,1.5617002,86.215,86.16,17.2048]
[1646565981671,53.03942311,86.217,86.16,17.2048]
[1646565981970,1.5617002,86.215,86.161,5.801]
[1646565982370,1.5617002,86.213,86.16,17.2048]
[1646565982571,1.5617002,86.212,86.16,17.2048]
[1646565982770,1.5617002,86.213,86.16,17.2048]
[1646565982971,1.5617002,86.213,86.16,34.618]
[1646565983171,1.5617002,86.212,86.16,34.618]
[1646565984670,1.5617002,86.213,86.16,34.618]
[1646565985072,1.5617002,86.216,86.16,34.618]
[1646565985271,1.5617002,86.219,86.161,5.801]
[1646565985473,1.5617002,86.218,86.17,17.4076]
[1646565985672,1.5617002,86.218,86.171,5.8]
[1646565985872,1.5617002,86.219,86.172,20.37155274]
[1646565986074,1.5617002,86.218,86.173,5.8]
[1646565986771,1.5617002,86.219,86.173,5.8]
[1646565987173,1.5617002,86.214,86.18,17.4089]
[1646565987372,23.7728,86.232,86.18,17.4089]
[1646565987373,1.5617002,86.216,86.181,5.8]
[1646565987573,1.5617002,86.215,86.181,5.8]
[1646565987778,23.7728,86.232,86.181,5.8]
[1646565987779,1.5617002,86.217,86.181,5.8]
[1646565988372,1.5617002,86.216,86.181,5.8]
[1646565988575,1.5617002,86.216,86.18,17.4089]
[1646565989173,1.5617002,86.216,86.181,5.8]
[1646565989875,1.5617002,86.215,86.181,5.8]
[1646565990074,1.5617002,86.212,86.181,5.8]
[1646565990274,1.5617002,86.212,86.16,17.2048]
[1646565990475,1.5617002,86.207,86.16,17.2048]
[1646565990675,61.84849413,86.206,86.16,17.2048]
[1646565990877,1.5617002,86.205,86.131,23.516]
[1646565991078,17.4239,86.18,86.103,24.681]
[1646565991275,26.7039,86.18,86.106,24.60987204]
[1646565991476,1.5617002,86.176,86.106,24.60987204]
[1646565991678,1.5617002,86.177,86.118,57.25994265]
[1646565991877,53.02287873,86.176,86.118,57.25994265]
[1646565992177,1.5617002,86.175,86.11,17.4235]
[1646565992578,1.5617002,86.175,86.11,17.4983]
[1646565992778,1.5617002,86.168,86.11,17.4983]
[1646565992979,1.5617002,86.164,86.11,17.4983]
[1646565993180,51.84344551,86.163,86.11,17.4983]
[1646565996505,51.84344551,86.163,86.11,34.9218]
[1646565997303,24.1699,86.175,86.11,34.9218]
[1646565998008,5.804,86.174,86.11,34.9218]
[1646565998405,24.1699,86.175,86.11,34.9218]
[1646565998606,116.1,86.174,86.096,15.70177174]
[1646565998809,5.804,86.173,86.081,15.70177174]
[1646565999006,1.5617002,86.171,86.081,15.70177174]
[1646565999207,116.1,86.169,86.081,15.70177174]
[1646565999406,116.1,86.169,86.068,15.70177174]
[1646565999614,116.1,86.159,86.073,49.07152906]
[1646565999810,116.1,86.157,86.069,2.83613526]
[1646566000008,116.1,86.153,86.069,2.83613526]
[1646566000206,69.41,86.154,86.024,6.05139813]
[1646566000207,116.1,86.151,86.055,15.70177174]
[1646566000406,116.1,86.143,86.049,24.60987204]
[1646566000609,116.1,86.139,86.049,24.60987204]
[1646566000807,48.27213057,86.136,86.049,24.60987204]
[1646566001012,116.1,86.129,86.04,17.4371]
[1646566001208,116.1,86.123,86.04,17.3114]
[1646566001412,116.1,86.121,86.04,17.3114]
[1646566001607,116.1,86.119,86.04,17.3114]
[1646566001807,116.1,86.117,86.04,17.3114]
[1646566002108,116.1,86.115,86.04,17.3114]
[1646566002307,116.1,86.113,86.04,17.3114]
[1646566002509,116.1,86.111,86.04,17.3114]
[1646566002709,116.1,86.109,86.04,17.3114]
[1646566002908,116.1,86.107,86.04,17.3114]
[1646566003112,116.1,86.105,86.04,17.3114]
[1646566003316,59.7335801,86.103,86.04,17.3114]
[1646566003511,5.809,86.102,86.04,17.3114]
[1646566004310,5.809,86.102,86.04,34.7495]
[1646566004511,59.7335801,86.103,86.04,34.7495]
[1646566004711,5.809,86.102,86.04,34.7495]
[1646566004912,5.809,86.102,86.04,33.7495]
[1646566005112,5.809,86.118,86.04,33.7495]
[1646566005311,5.808,86.121,86.04,33.7495]
[1646566005913,56.00448868,86.132,86.04,36.58563526]
[1646566006116,5.808,86.121,86.041,49.26744119]
[1646566006517,5.808,86.121,86.051,26.08864865]
[1646566006714,56.00448868,86.132,86.051,26.08864865]
[1646566007314,116.1,86.131,86.051,26.08864865]
[1646566007815,116.1,86.12,86.04,33.7495]
[1646566008014,116.1,86.118,86.04,16.3114]
[1646566008216,185.51,86.114,86.04,16.3114]
[1646566008416,116.1,86.112,86.04,16.3114]
[1646566008616,116.1,86.11,86.04,16.3114]
[1646566008816,116.1,86.108,86.04,16.3114]
[1646566009019,116.1,86.106,86.04,16.3114]
[1646566009215,53.17984306,86.109,86.04,16.3114]
[1646566009216,116.1,86.104,86.04,16.3114]
[1646566010519,116.1,86.104,86.033,76.42877417]
[1646566011222,116.1,86.107,86.033,76.42877417]
[1646566011522,24.6779,86.108,86.033,76.42877417]
[1646566011919,116.1,86.107,86.033,76.42877417]
[1646566012323,5.809,86.106,86.033,17.3494]
[1646566012523,116.1,86.105,86.033,17.3494]
[1646566012720,116.1,86.103,86.033,17.3494]
[1646566012921,116.1,86.101,86.033,17.3494]
[1646566013119,116.1,86.099,86.033,17.3494]
[1646566013320,116.1,86.095,86.033,17.3494]
[1646566013520,121.909,86.094,86.033,17.3494]
[1646566015125,116.1,86.095,86.033,17.3494]
[1646566015524,116.1,86.093,86.033,17.3494]
[1646566015726,116.1,86.091,86.033,17.3494]
[1646566015924,116.1,86.089,86.033,17.3494]
[1646566016125,116.1,86.087,86.033,17.3494]
[1646566016328,50.67305099,86.096,86.033,17.3494]
[1646566016329,116.1,86.085,86.033,17.3494]
[1646566016729,55.8982751,86.083,86.033,17.3494]
[1646566017728,5.809,86.082,86.033,17.3494]
[1646566018126,24.526,86.095,86.033,17.3494]
[1646566020429,24.526,86.095,86.011,24.1961]
[1646566020430,140.626,86.095,86.011,24.1961]
[1646566020630,69.41,86.084,85.964,6.05362691]
[1646566020831,1.5617002,86.082,85.987,15.2684384]
[1646566021031,116.1,86.08,85.987,15.2684384]
[1646566021230,185.51,86.074,85.974,18.10457366]
[1646566021430,116.1,86.072,85.989,64.43999442]
[1646566021634,116.1,86.07,85.989,64.43999442]
[1646566021831,116.1,86.068,85.989,64.43999442]
[1646566022034,116.1,86.066,85.989,64.43999442]
[1646566022232,121.911,86.065,85.989,64.43999442]
[1646566022832,5.811,86.065,85.99,17.4477]
[1646566023033,5.811,86.069,85.989,64.43999442]
[1646566023232,23.2282,86.07,85.989,64.43999442]
[1646566023533,5.811,86.069,85.997,24.60987204]
[1646566023733,23.2282,86.07,86.0,17.4456]
[1646566026536,23.2282,86.07,86.0,42.05547204]
[1646566027338,5.811,86.069,86.0,42.05547204]
[1646566028737,65.39607568,86.069,86.0,42.05547204]
[1646566029438,66.95777588,86.069,86.0,42.05547204]
[1646566029740,7.3727002,86.069,86.0,42.05547204]
[1646566030240,7.3727002,86.069,86.0,17.4456]
[1646566030439,1.5617002,86.069,86.0,17.4456]
[1646566030639,64.22377444,86.067,86.0,17.4456]
[1646566030843,1.5617002,86.066,86.0,17.4456]
[1646566031040,1.5617002,86.065,86.0,17.4456]
[1646566031241,1.5617002,86.064,86.0,17.4456]
[1646566031539,1.5617002,86.062,86.0,17.4456]
[1646566032345,1.5617002,86.063,86.0,17.4456]
[1646566032541,1.5617002,86.061,86.0,17.4456]
[1646566032741,116.1,86.066,86.0,17.4456]
[1646566032742,1.5617002,86.059,86.0,17.4456]
[1646566032943,1.5617002,86.06,86.0,17.4456]
[1646566033543,1.5617002,86.059,86.0,17.4456]
[1646566034142,1.5617002,86.059,86.0,18.4456]
[1646566034442,1.5617002,86.06,86.0,18.4456]
[1646566034643,64.22377444,86.067,86.0,18.4456]
[1646566034644,1.5617002,86.065,86.0,18.4456]
[1646566035044,1.5617002,86.064,86.0,18.4456]
[1646566035443,1.5617002,86.066,86.0,18.4456]
[1646566035644,1.5617002,86.068,86.0,18.4456]
[1646566036264,7.3727002,86.069,86.0,43.05547204]
[1646566036465,1.5617002,86.072,86.02,17.4344]
[1646566036665,1.5617002,86.078,86.02,25.8544]
[1646566036865,1.5617002,86.079,86.021,2.83613526]
[1646566037070,1.5617002,86.081,86.021,2.83613526]
[1646566037265,1.5617002,86.079,86.021,2.83613526]
[1646566037469,1.5617002,86.079,86.022,57.2730293]
[1646566037667,1.5617002,86.083,86.03,17.4369]
[1646566038067,1.5617002,86.091,86.03,17.4369]
[1646566038267,1.5617002,86.087,86.031,2.83613526]
[1646566038478,1.5617002,86.089,86.023,16.43749862]
[1646566038666,1.5617002,86.084,86.023,16.43749862]
[1646566038868,1.5617002,86.085,86.023,16.43749862]
[1646566039267,1.5617002,86.084,86.023,16.43749862]
[1646566039467,47.46549997,86.095,86.023,16.43749862]
[1646566039468,1.5617002,86.085,86.023,16.43749862]
[1646566039667,48.10709702,86.081,86.022,57.2730293]
[1646566040268,48.10709702,86.081,86.03,17.4399]
[1646566041269,49.66879722,86.081,86.03,17.4399]
[1646566041870,1.5617002,86.078,86.03,17.4399]
[1646566042271,1.5617002,86.077,86.03,17.4399]
[1646566043070,1.5617002,86.079,86.03,17.4399]
[1646566043273,1.5617002,86.085,86.03,23.9999]
[1646566043471,1.5617002,86.085,86.031,5.809]
[1646566043671,1.5617002,86.089,86.04,17.4328]
[1646566043872,1.5617002,86.092,86.042,17.52342627]
[1646566044073,1.5617002,86.105,86.043,5.809]
[1646566044272,1.5617002,86.117,86.044,116.1]
[1646566044475,1.5617002,86.12,86.046,116.1]
[1646566044773,1.5617002,86.121,86.051,116.1]
[1646566044973,1.5617002,86.129,86.053,116.1]
[1646566045179,1.5617002,86.136,86.06,58.0744]
[1646566045374,1.5617002,86.139,86.061,5.807]
[1646566045575,1.5617002,86.139,86.062,56.76822063]
[1646566045775,1.5617002,86.139,86.07,17.4224]
[1646566045975,1.5617002,86.138,86.071,5.806]
[1646566046175,1.5617002,86.137,86.071,5.806]
[1646566046375,1.5617002,86.134,86.071,2.83613526]
[1646566046575,1.5617002,86.134,86.072,5.807]
[1646566047175,1.5617002,86.135,86.072,5.807]
[1646566047376,1.5617002,86.139,86.072,5.807]
[1646566047576,1.5617002,86.141,86.072,5.807]
[1646566047878,5.806,86.14,86.071,2.83613526]
[1646566048078,1.5617002,86.141,86.08,17.4299]
[1646566048276,1.5617002,86.141,86.081,23.83423494]
[1646566048478,1.5617002,86.142,86.081,23.83423494]
[1646566048779,1.5617002,86.142,86.081,5.806]
[1646566048978,1.5617002,86.142,86.072,5.806]
[1646566049380,45.57536584,86.144,86.072,5.806]
[1646566049580,45.57536584,86.144,86.073,57.02853309]
[1646566049780,45.57536584,86.144,86.074,5.806]
[1646566050187,45.57536584,86.144,86.09,17.4259]
[1646566051182,1.5617002,86.167,86.1,17.4208]
[1646566051381,1.5617002,86.167,86.101,5.805]
[1646566051782,1.5617002,86.168,86.092,5.805]
[1646566051985,1.5617002,86.167,86.092,5.805]
[1646566052183,57.57742583,86.162,86.093,2.83613526]
[1646566052385,57.57742583,86.162,86.094,5.805]
[1646566052784,57.57742583,86.162,86.095,2.83613526]
[1646566052987,57.57742583,86.162,86.096,5.805]
[1646566053184,57.57742583,86.162,86.11,17.4212]
[1646566053383,57.57742583,86.162,86.111,5.804]
[1646566053883,57.57742583,86.162,86.11,5.804]
[1646566054084,57.57742583,86.162,86.097,5.804]
[1646566054584,57.57742583,86.162,86.097,2.83613526]
[1646566054986,57.57742583,86.162,86.098,69.54764559]
[1646566055188,57.57742583,86.162,86.12,17.4214]
[1646566055387,57.57742583,86.162,86.121,5.804]
[1646566056587,57.57742583,86.162,86.11,17.4239]
[1646566059691,57.57742583,86.162,86.111,16.89325732]
[1646566059888,57.57742583,86.162,86.12,17.4215]
[1646566060793,57.57742583,86.162,86.095,5.804]
[1646566061190,57.57742583,86.162,86.095,66.58960555]
[1646566062192,57.57742583,86.162,86.1,17.4239]
[1646566062393,57.57742583,86.162,86.101,5.805]
[1646566062592,57.57742583,86.162,86.096,5.805]
[1646566064196,57.57742583,86.162,86.11,17.4231]
[1646566064395,57.57742583,86.162,86.111,5.804]
[1646566065195,57.57742583,86.162,86.121,51.29345443]
[1646566065799,57.57742583,86.162,86.101,5.804]
[1646566066704,57.57742583,86.162,86.11,17.4221]
[1646566066899,57.57742583,86.162,86.111,62.06771034]
[1646566068001,57.57742583,86.162,86.12,17.4209]
[1646566069517,57.57742583,86.162,86.111,5.804]
[1646566070526,59.13912603,86.162,86.12,17.4217]
[1646566070933,57.57742583,86.162,86.12,17.4217]
[1646566071829,1.5617002,86.163,86.12,17.4217]
[1646566072027,1.5617002,86.163,86.12,34.8174]
[1646566072427,1.5617002,86.153,86.12,34.8174]
[1646566072627,1.5617002,86.163,86.12,34.8174]
[1646566073029,1.5617002,86.163,86.121,2.83613526]
[1646566073229,1.5617002,86.164,86.13,17.4172]
[1646566074029,1.5617002,86.165,86.13,17.4172]
[1646566074235,1.5617002,86.162,86.13,17.4172]
[1646566075030,1.5617002,86.166,86.13,17.4172]
[1646566075231,1.5617002,86.169,86.13,26.0772]
[1646566075430,1.5617002,86.169,86.13,142.1772]
[1646566075730,1.5617002,86.172,86.14,133.5131]
[1646566076129,1.5617002,86.178,86.141,2.83613526]
[1646566076330,1.5617002,86.179,86.141,2.83613526]
[1646566076732,1.5617002,86.179,86.15,17.4131]
[1646566076934,1.5617002,86.178,86.15,17.4131]
[1646566077133,1.5617002,86.179,86.15,17.4131]
[1646566077333,1.5617002,86.18,86.15,17.4131]
[1646566077532,1.5617002,86.181,86.15,17.4131]
[1646566078132,1.5617002,86.183,86.15,17.4131]
[1646566078333,1.5617002,86.184,86.15,17.4131]
[1646566079335,1.5617002,86.186,86.15,35.1479]
[1646566079536,1.5617002,86.184,86.15,35.1479]
[1646566079841,1.5617002,86.185,86.15,35.1479]
[1646566081839,1.5617002,86.193,86.15,35.1479]
[1646566082241,52.7994368,86.192,86.15,35.1479]
[1646566082440,1.5617002,86.195,86.15,35.1479]
[1646566082640,1.5617002,86.196,86.15,35.1479]
[1646566083242,1.5617002,86.199,86.15,35.1479]
[1646566083443,1.5617002,86.199,86.151,2.83613526]
[1646566083646,1.5617002,86.2,86.16,17.408]
[1646566083843,1.5617002,86.212,86.16,17.408]
[1646566084045,1.5617002,86.211,86.161,2.83613526]
[1646566084344,1.5617002,86.212,86.161,2.83613526]
[1646566084545,47.08266482,86.211,86.161,54.11652568]
[1646566084744,48.64436502,86.211,86.161,54.11652568]
[1646566085144,48.64436502,86.211,86.17,17.4099]
[1646566085344,47.08266482,86.211,86.17,17.4099]
[1646566085545,1.5617002,86.217,86.17,17.4099]
[1646566085743,1.5617002,86.22,86.171,2.83613526]
[1646566086346,1.5617002,86.222,86.171,2.83613526]
[1646566086545,47.85911769,86.219,86.171,67.63204281]
[1646566087147,47.85911769,86.219,86.18,17.4068]
[1646566090372,47.85911769,86.219,86.18,35.1631]
[1646566090973,1.5617002,86.226,86.18,35.1631]
[1646566091172,1.38520505,86.226,86.18,35.1631]
[1646566091377,5.8,86.243,86.18,35.1631]
[1646566091877,63.91818364,86.242,86.18,35.1631]
[1646566092073,5.799,86.241,86.18,35.1631]
[1646566093074,5.799,86.241,86.181,2.83613526]
[1646566093277,63.91818364,86.242,86.19,17.4035]
[1646566093477,63.91818364,86.242,86.19,34.56213772]
[1646566093675,63.91818364,86.242,86.191,2.83613526]
[1646566094476,63.91818364,86.242,86.2,17.4043]
[1646566095776,63.91818364,86.242,86.18,35.165]
[1646566095976,5.799,86.241,86.18,35.165]
[1646566097377,5.799,86.241,86.18,10.215]
[1646566097579,5.799,86.241,86.18,27.7185]
[1646566097777,63.91818364,86.242,86.19,17.401]
[1646566097978,63.91818364,86.242,86.192,11.36255039]
[1646566098178,63.91818364,86.242,86.193,5.799]
[1646566099180,63.91818364,86.242,86.2,17.4021]
[1646566099378,63.91818364,86.242,86.201,5.799]
[1646566099581,63.91818364,86.242,86.2,17.4021]
[1646566101681,63.91818364,86.242,86.201,5.799]
[1646566101880,63.91818364,86.242,86.21,17.4034]
[1646566103283,3.12334829,86.266,86.22,17.4011]
[1646566103484,3.12334829,86.279,86.221,5.797]
[1646566103885,3.12334829,86.301,86.221,2.83613526]
[1646566104090,22.7415,86.301,86.223,116.1]
[1646566104288,52.24372876,86.3,86.224,5.796]
[1646566104488,52.24372876,86.3,86.225,116.1]
[1646566104694,52.24372876,86.3,86.226,5.796]
[1646566104889,52.24372876,86.3,86.23,17.3977]
[1646566105089,52.24372876,86.3,86.231,5.796]
[1646566105491,52.24372876,86.3,86.232,29.23612804]
[1646566105691,52.24372876,86.3,86.232,49.34969318]
[1646566105892,52.24372876,86.3,86.232,32.0722633]
[1646566106093,52.24372876,86.3,86.25,17.3926]
[1646566106695,52.24372876,86.3,86.251,5.795]
[1646566107092,52.24372876,86.3,86.249,5.795]
[1646566107294,52.24372876,86.3,86.241,5.795]
[1646566107492,52.24372876,86.3,86.26,17.3912]
[1646566114301,22.7415,86.301,86.26,17.3912]
[1646566115502,3.12334829,86.324,86.26,17.3912]
[1646566115503,3.12334829,86.337,86.261,29.23612804]
[1646566115802,61.64696512,86.347,86.28,17.3833]
[1646566116003,49.5151,86.347,86.28,23.9633]
[1646566116202,49.5151,86.347,86.281,29.84746521]
[1646566116402,64.15060048,86.346,86.282,23.48788906]
[1646566116604,64.15060048,86.346,86.282,52.7240171]
[1646566116804,64.15060048,86.346,86.3,17.3851]
[1646566118507,64.15060048,86.346,86.268,29.23612804]
[1646566118709,121.893,86.345,86.226,23.3079]
[1646566118908,125.56303451,86.345,86.242,23.3079]
[1646566119210,3.12334829,86.336,86.242,23.3079]
[1646566119407,5.793,86.335,86.242,23.3079]
[1646566119610,31.78304829,86.335,86.25,17.3951]
[1646566119809,62.45288524,86.333,86.25,17.3951]
[1646566120010,6.33968622,86.332,86.25,17.3951]
[1646566122031,6.33968622,86.332,86.25,43.94456137]
[1646566123033,5.793,86.331,86.25,43.94456137]
[1646566123234,8.91634829,86.331,86.25,43.94456137]
[1646566123432,6.33968622,86.33,86.25,43.94456137]
[1646566123634,5.793,86.329,86.25,43.94456137]
[1646566124033,6.33968622,86.328,86.25,43.94456137]
[1646566124233,5.793,86.327,86.25,43.94456137]
[1646566124433,6.33968622,86.326,86.25,43.94456137]
[1646566124634,5.793,86.325,86.25,43.94456137]
[1646566124840,6.33968622,86.324,86.25,43.94456137]
[1646566125034,28.7707,86.323,86.25,43.94456137]